lending/lending_fUSD_20260222
["ID","MTS","AMOUNT","RATE_DAILY","PERIOD"]
[406334989,1771761040043,-350.0,0.00018984,2]
[406334990,1771761040052,-392.65378736,0.00019,2]
[406334991,1771761040062,-154.45264033,0.00019,2]
[406334992,1771761040072,-234.32540579,0.00019054,2]
[406334993,1771761040081,-168.0,0.00019056,2]
[406334994,1771761040090,-200.0,0.00019082,2]
[406334995,1771761040099,-150.0,0.00019178,2]
[406334996,1771761040108,-169.0,0.00019204,2]
[406334997,1771761040117,-200.0,0.00019474,4]
[406334998,1771761040126,-168.0,0.0001967,2]
[406334999,1771761040135,-155.0,0.00019689,2]
[406335000,1771761040145,-168.0,0.00019709,2]
[406335001,1771761040154,-250.0,0.00019726,2]
[406335002,1771761040167,-168.0,0.00019746,2]
[406335003,1771761040176,-823.0,0.00019758,2]
[406335004,1771761040187,-155.0,0.00019799,2]
[406335005,1771761040197,-169.0,0.00019883,2]
[406335006,1771761040206,-65518.15555313,0.000199,30]
[406335007,1771761040215,-201.0,0.00019919,2]
[406335008,1771761040233,-234.32540579,0.00019977,2]
[406335009,1771761040246,-201.0,0.00019998,2]
[406335010,1771761040255,-1258.72,0.0002,2]
[406335011,1771761040264,-153.26383928,0.0002,2]
[406335012,1771761040273,-2000.0,0.0002,2]
[406335013,1771761040282,-2000.0,0.0002001,2]
[406335014,1771761040293,-168.0,0.00020015,2]
[406335015,1771761040301,-2000.0,0.0002002,2]
[406335016,1771761040311,-2698.754019,0.0002003,2]
[406335017,1771761040320,-3292.0,0.0002006,2]
[406335018,1771761040329,-201.0,0.00020076,2]
[406335019,1771761040339,-168.0,0.00020226,2]
[406335020,1771761040348,-266.05548305,0.00020274,2]
[406335021,1771761040357,-1286.4221356,0.00020277,2]
[406335022,1771761040366,-1238.811533,0.00020279,2]
[406335023,1771761040375,-168.0,0.0002031,2]
[406335024,1771761040383,-1600.0,0.00020316,2]
[406335025,1771761040392,-155.14,0.00020548,2]
[406335026,1771761040401,-1000.0,0.00020561,2]
[406335027,1771761040411,-160.0,0.00020669,2]
[406335028,1771761040419,-168.0,0.00020725,2]
[406335029,1771761040428,-287.0395771,0.00020786,2]
[406335030,1771761040437,-276.4162157,0.00020787,2]
[406335031,1771761040446,-168.0,0.00020838,2]
[406335032,1771761040456,-169.0,0.00020849,2]
[406335033,1771761040464,-168.0,0.00020878,2]
[406335034,1771761040474,-234.32540579,0.000209,2]
[406335035,1771761040483,-1197.61315713,0.00021,2]
[406335036,1771761040492,-197.67601321,0.00021,2]
[406335037,1771761040501,-110391.87866356,0.00021,2]
[406335038,1771761040511,-251.74322487,0.00021,2]
[406335039,1771761040520,-168.0,0.00021023,2]
[406335040,1771761040529,-511.76774676,0.00021106,2]
[406335041,1771761040538,-201.0,0.00021135,2]
[406335042,1771761040548,-223.01004224,0.000215,2]
[406335043,1771761040558,-155.0,0.00021599,2]
[406335044,1771761040567,-785.0,0.00021622,2]
[406335045,1771761040576,-201.0,0.00021851,2]
[406335046,1771761040586,-3045.54,0.00021918,2]
[406335047,1771761040595,-5000.0,0.00021918,2]
[406335048,1771761040604,-204.96,0.0002195,2]
[406335049,1771761040613,-132456.41210482,0.00022,2]
[406335050,1771761040622,-163.53,0.00022,2]
[406335051,1771761040631,-160.0,0.00022,2]
[406335052,1771761040640,-360764.647445,0.00022,4]
[406335053,1771761040649,-6534.02,0.00022,2]
[406335054,1771761040658,-1526.0,0.00022064,2]
[406335055,1771761040667,-496.50578643,0.000221,2]
[406335056,1771761040676,-241.26035627,0.0002211,2]
[406335057,1771761040685,-559.036621,0.00022176,30]
[406335058,1771761040694,-1600.0,0.00022347,2]
[406335059,1771761040703,-186.837752,0.00022431,30]
[406335060,1771761040712,-1000.0,0.00022617,2]
[406335061,1771761040721,-3653.0,0.00022664,120]
[406335062,1771761040730,-165.86292334,0.00022664,120]
[406335063,1771761040739,-150.0,0.00022664,3]
[406335064,1771761040748,-525.45261076,0.0002271,2]
[406335065,1771761040757,-304941.08931983,0.00023,2]
[406335066,1771761040767,-151.0,0.00023,2]
[406335067,1771761040777,-151.0,0.00023,2]
[406335068,1771761040786,-151.0,0.00023,2]
[406335069,1771761040795,-151.0,0.00023,2]
[406335070,1771761040804,-151.0,0.00023,2]
[406335071,1771761040814,-151.0,0.00023,2]
[406335072,1771761040823,-151.0,0.00023,2]
[406335073,1771761040832,-151.0,0.00023,2]
[406335074,1771761040841,-151.0,0.00023,2]
[406335075,1771761040850,-151.0,0.00023,2]
[406335076,1771761040860,-151.0,0.00023,2]
[406335077,1771761040868,-151.0,0.00023,2]
[406335078,1771761040878,-256.047177,0.00023,2]
[406335079,1771761040887,-256.047177,0.00023,2]
[406335080,1771761040896,-256.047177,0.00023,2]
[406335081,1771761040904,-256.047177,0.00023,2]
[406335082,1771761040914,-151.0,0.00023,2]
[406335083,1771761040923,-151.0,0.00023,2]
[406335084,1771761040932,-151.0,0.00023,2]
[406335085,1771761040941,-151.0,0.00023,2]
[406335086,1771761040951,-151.0,0.00023,2]
[406335087,1771761040960,-151.0,0.00023,2]
[406335088,1771761040969,-152.344841,0.00023,2]
[406335089,1771761040978,-160.0,0.00023,2]
[406335090,1771761040987,-151.0,0.00023,2]
[406335091,1771761040997,-151.0,0.00023,2]
[406335092,1771761041008,-151.0,0.00023,2]
[406335093,1771761041017,-573.153477,0.00023,2]
[406335094,1771761041026,-573.153477,0.00023,2]
[406335095,1771761041035,-573.153477,0.00023,2]
[406335096,1771761041044,-573.153477,0.00023,2]
[406335097,1771761041053,-151.0,0.00023,2]
[406335098,1771761041063,-151.0,0.00023,2]
[406335099,1771761041073,-151.0,0.00023,2]
[406335100,1771761041082,-151.0,0.00023,2]
[406335101,1771761041092,-932.890926,0.00023,2]
[406335102,1771761041101,-378.726401,0.00023,2]
[406335103,1771761041109,-932.890926,0.00023,2]
[406335104,1771761041251,-932.890926,0.00023,2]
[406335105,1771761041262,-378.726401,0.00023,2]
[406335106,1771761041271,-932.890926,0.00023,2]
[406335107,1771761041282,-378.726401,0.00023,2]
[406335108,1771761041291,-378.726401,0.00023,2]
[406335109,1771761041299,-200.0,0.00023196,8]
[406335110,1771761041309,-618.0,0.00023198,2]
[406335111,1771761041318,-1338.0,0.00023198,2]
[406335112,1771761041328,-372.0,0.00023198,2]
[406335113,1771761041337,-1274.0,0.00023198,2]
[406335114,1771761041346,-1210.0,0.00023198,2]
[406335115,1771761041356,-5977.0,0.00023198,2]
[406335116,1771761041365,-2454.0,0.00023198,2]
[406335117,1771761041374,-678.55897621,0.000232,2]
[406335118,1771761041383,-161.86,0.00023288,30]
[406335119,1771761041393,-1449.52,0.00023361,2]
[406335120,1771761041402,-159.38,0.00023406,2]
[406335121,1771761041411,-200.0,0.000235,2]
[406335122,1771761041420,-219.57,0.0002399,2]
[406335123,1771761041430,-299.41,0.00023999,2]
[406335124,1771761041440,-1025.97804106,0.00024,2]
[406335125,1771761041449,-1240.61347426,0.00024,2]
[406335126,1771761041459,-184.84,0.00024068,2]
[406335127,1771761041468,-296.54,0.00024073,2]
[406335128,1771761041477,-423.83982989,0.0002421,2]
[406335129,1771761041486,-1600.0,0.00024379,2]
[406335130,1771761041495,-1664.32,0.00024434,2]
[406335131,1771761041507,-6534.02,0.000245,2]
[406335132,1771761041518,-1000.0,0.00024658,2]
[406335133,1771761041527,-507.65,0.00024658,2]
[406335134,1771761041535,-153.178362,0.00024658,2]
[406335135,1771761041544,-150.0,0.00024658,2]
[406335136,1771761041554,-324.652155,0.00024658,2]
[406335137,1771761041562,-324.652155,0.00024658,2]
[406335138,1771761041571,-324.652155,0.00024658,2]
[406335139,1771761041580,-324.652155,0.00024658,2]
[406335140,1771761041589,-1000.0,0.00024674,2]
[406335141,1771761041599,-150.0,0.00025,2]
[406335142,1771761041608,-1116.42972084,0.00025,2]
[406335143,1771761041618,-207.97918787,0.00025,2]
[406335144,1771761041627,-1788.88729396,0.00025,2]
[406335145,1771761041637,-540.0,0.00025,2]
[406335146,1771761041646,-612.28323019,0.00025,2]
[406335147,1771761041657,-3051.35296469,0.00025,2]
[406335148,1771761041667,-167.70034267,0.00025,2]
[406335149,1771761041678,-155.0,0.00025199,2]
[406335150,1771761041688,-150.0,0.0002589,2]
[406335151,1771761041698,-511.76774676,0.00025925,2]
[406335152,1771761041708,-165.90586647,0.00025925,2]
[406335153,1771761041717,-602.33228251,0.0002599,2]
[406335154,1771761041727,-4534.00127051,0.00026,2]
[406335155,1771761041736,-210.8,0.00026,2]
[406335156,1771761041745,-217.00225735,0.00026,2]
[406335157,1771761041754,-618.0,0.00026198,2]
[406335158,1771761041764,-1209.0,0.00026198,2]
[406335159,1771761041773,-438.151,0.00026198,2]
[406335160,1771761041782,-237.08482495,0.000263,2]
[406335161,1771761041791,-27544.86583785,0.000264,2]
[406335162,1771761041801,-200.0,0.00026422,12]
[406335163,1771761041811,-150.0,0.00026725,2]
[406335164,1771761041819,-500.0,0.00026847,2]
[406335165,1771761041829,-250.0,0.00027,2]
[406335166,1771761041838,-1037.17620724,0.00027,2]
[406335167,1771761041846,-530.0,0.00027,2]
[406335168,1771761041855,-2000.0,0.00027,2]
[406335169,1771761041864,-2489.679493,0.0002701,2]
[406335170,1771761041874,-150.0,0.00027185,2]
[406335171,1771761041883,-150.70892352,0.00027273,2]
[406335172,1771761041891,-150.0,0.00027369,2]
[406335173,1771761041900,-731.22972869,0.0002737,2]
[406335174,1771761041910,-4122.0987762,0.0002739,2]
[406335175,1771761041919,-8144.25827698,0.0002739,2]
[406335176,1771761041928,-520.92,0.00027397,2]
[406335177,1771761041938,-507.65,0.00027397,2]
[406335178,1771761041947,-1000.0,0.00027397,20]
[406335179,1771761041956,-300.0,0.00027397,2]
[406335180,1771761041965,-151.0,0.00027397,2]
[406335181,1771761041974,-151.0,0.00027397,2]
[406335182,1771761041983,-151.0,0.00027397,2]
[406335183,1771761041992,-151.0,0.00027397,2]
[406335184,1771761042001,-151.0,0.00027397,2]
[406335185,1771761042010,-281.176674,0.00027397,2]
[406335186,1771761042019,-281.176674,0.00027397,2]
[406335187,1771761042028,-281.176674,0.00027397,2]
[406335188,1771761042037,-281.176674,0.00027397,2]
[406335189,1771761042046,-6534.02,0.000274,2]
[406335190,1771761042056,-201.82726027,0.000275,2]
[406335191,1771761042065,-551.34617508,0.000275,2]
[406335192,1771761042074,-500.0,0.00027808,120]
[406335193,1771761042083,-51015.27399493,0.00028,2]
[406335194,1771761042092,-160.0,0.00028,2]
[406335195,1771761042101,-165.003,0.00028198,2]
[406335196,1771761042111,-150.0,0.00028544,2]
[406335197,1771761042119,-306.7551253,0.00028715,2]
[406335198,1771761042129,-495.77856808,0.00028767,2]
[406335199,1771761042137,-503.9138085,0.00029,2]
[406335200,1771761042146,-618.0,0.00029198,2]
[406335201,1771761042155,-200.0,0.00029219,19]
[406335202,1771761042165,-1304.418782,0.00029568,30]
[406335203,1771761042174,-2093.73477282,0.00029698,2]
[406335204,1771761042185,-79180.15058256,0.000299,2]
[406335205,1771761042195,-435.954755,0.00029908,30]
[406335206,1771761042204,-150.0,0.00029971,2]
[406335207,1771761042213,-238.1263055,0.0002999,2]
[406335208,1771761042222,-19943.51451283,0.0003,2]
[406335209,1771761042231,-320.52096258,0.0003,2]
[406335210,1771761042240,-1824.63515708,0.0003,2]
[406335211,1771761042249,-163.65754243,0.0003,2]
[406335212,1771761042258,-170.0,0.0003,120]
[406335213,1771761042268,-164.52,0.0003,7]
[406335214,1771761042277,-1077.86299281,0.0003013,2]
[406335215,1771761042287,-13905.66835593,0.0003013,2]
[406335216,1771761042296,-636.53572096,0.0003013,2]
[406335217,1771761042305,-202.49787502,0.0003013,2]
[406335218,1771761042314,-7761.6147683,0.0003013,2]
[406335219,1771761042323,-161.86,0.00030137,30]
[406335220,1771761042332,-507.65,0.00030137,2]
[406335221,1771761042341,-151.0,0.00030137,7]
[406335222,1771761042350,-2000.0,0.00030137,2]
[406335223,1771761042359,-15596.54748013,0.000302,2]
[406335224,1771761042369,-2000.0,0.00030685,2]
[406335225,1771761042378,-6534.02,0.000307,2]
[406335226,1771761042387,-511.76774676,0.00030745,2]
[406335227,1771761042396,-609.42791185,0.00030745,2]
[406335228,1771761042406,-440.02154454,0.00030745,2]
[406335229,1771761042415,-196.46574185,0.00030745,2]
[406335230,1771761042424,-1615.13247028,0.0003084,2]
[406335231,1771761042433,-79323.33825602,0.0003095,2]
[406335232,1771761042443,-51762.63097971,0.00031,2]
[406335233,1771761042452,-2000.0,0.00031233,2]
[406335234,1771761042461,-703.0,0.00031426,2]
[406335235,1771761042470,-150.0,0.00031426,2]
[406335236,1771761042479,-253.0,0.00031426,2]
[406335237,1771761042489,-198.11340609,0.000315,2]
[406335238,1771761042498,-200.0,0.00031644,29]
[406335239,1771761042507,-2000.0,0.00031781,2]
[406335240,1771761042517,-1173.3353058,0.00032,3]
[406335241,1771761042526,-180.0,0.00032,120]
[406335242,1771761042535,-297.211,0.00032198,2]
[406335243,1771761042544,-2023.95858652,0.00032329,2]
[406335244,1771761042553,-155.0,0.00032398,2]
[406335245,1771761042562,-20037.15594043,0.0003268,2]
[406335246,1771761042571,-2000.0,0.000327,2]
[406335247,1771761042581,-413.5,0.0003275,30]
[406335248,1771761042590,-365.0,0.0003275,30]
[406335249,1771761042599,-1726.91534345,0.0003287,4]
[406335250,1771761042609,-346.11,0.00032877,2]
[406335251,1771761042618,-507.65,0.00032877,2]
[406335252,1771761042628,-500.0,0.00032877,2]
[406335253,1771761042637,-500.0,0.00032877,2]
[406335254,1771761042646,-500.0,0.00032877,2]
[406335255,1771761042655,-372.93950921,0.00032877,2]
[406335256,1771761042664,-500.0,0.00032877,2]
[406335257,1771761042673,-500.0,0.00032877,2]
[406335258,1771761042682,-500.0,0.00032877,2]
[406335259,1771761042692,-163.73,0.000329,20]
[406335260,1771761042700,-500.0,0.00032973,5]
[406335261,1771761042709,-51506.7170417,0.00033,2]
[406335262,1771761042719,-26485.84696501,0.00033,2]
[406335263,1771761042727,-154.20459671,0.00033,2]
[406335264,1771761042736,-20981.8576649,0.00033,120]
[406335265,1771761042746,-482.01,0.000332,2]
[406335266,1771761042754,-561.209936,0.000332,15]
[406335267,1771761042763,-150.0,0.0003337,7]
[406335268,1771761042772,-1216.40616066,0.000335,2]
[406335269,1771761042781,-6534.02,0.000335,2]
[406335270,1771761042790,-1000.0,0.0003365,7]
[406335271,1771761042799,-200.0,0.00033746,37]
[406335272,1771761042808,-500.0,0.00033754,120]
[406335273,1771761042819,-1000.0,0.00033924,7]
[406335274,1771761042827,-1000.0,0.00034342,5]
[406335275,1771761042836,-1738.4668835,0.0003449,2]
[406335276,1771761042845,-1500.0,0.00034795,2]
[406335277,1771761042854,-151.36319148,0.00034836,2]
[406335278,1771761042864,-1925.28348306,0.00035,2]
[406335279,1771761042874,-803.08787113,0.00035,2]
[406335280,1771761042883,-1000.0,0.00035303,2]
[406335281,1771761042892,-1000.0,0.00035303,2]
[406335282,1771761042901,-1000.0,0.00035303,2]
[406335283,1771761042910,-1000.0,0.00035303,2]
[406335284,1771761042920,-1000.0,0.00035303,2]
[406335285,1771761042929,-511.76774676,0.00035564,2]
[406335286,1771761042938,-165.90586647,0.00035564,2]
[406335287,1771761042947,-200.0,0.00035568,44]
[406335288,1771761042956,-731.22972869,0.00035589,30]
[406335289,1771761042965,-233.95598063,0.00035589,120]
[406335290,1771761042975,-23777.50109647,0.0003561,2]
[406335291,1771761042983,-507.65,0.00035616,2]
[406335292,1771761042992,-151.0,0.00035616,31]
[406335293,1771761043001,-1482.94906727,0.00035712,5]
[406335294,1771761043010,-115987.99977263,0.00036,2]
[406335295,1771761043018,-20000.0,0.00036,3]
[406335296,1771761043027,-6534.02,0.00036,2]
[406335297,1771761043036,-150.0,0.00036,2]
[406335298,1771761043046,-1664.32,0.00036215,2]
[406335299,1771761043055,-1000.0,0.0003639,14]
[406335300,1771761043065,-2000.0,0.000364,2]
[406335301,1771761043074,-1000.0,0.00036664,14]
[406335302,1771761043083,-1617.2389744,0.000368,2]
[406335303,1771761043092,-1963.2496398,0.000368,2]
[406335304,1771761043101,-151.0,0.000368,31]
[406335305,1771761043110,-151.0,0.000368,31]
[406335306,1771761043120,-151.0,0.000368,31]
[406335307,1771761043129,-151.0,0.000368,31]
[406335308,1771761043139,-151.0,0.000368,31]
[406335309,1771761043149,-151.0,0.000368,31]
[406335310,1771761043158,-151.0,0.000368,31]
[406335311,1771761043167,-573.153477,0.000368,31]
[406335312,1771761043177,-573.153477,0.000368,31]
[406335313,1771761043188,-573.153477,0.000368,31]
[406335314,1771761043197,-573.153477,0.000368,31]
[406335315,1771761043207,-281.176674,0.000368,31]
[406335316,1771761043216,-281.176674,0.000368,31]
[406335317,1771761043226,-281.176674,0.000368,31]
[406335318,1771761043236,-281.176674,0.000368,31]
[406335320,1771761043245,-151.0,0.000368,31]
[406335322,1771761043254,-151.0,0.000368,31]
[406335324,1771761043263,-151.0,0.000368,31]
[406335325,1771761043273,-151.0,0.000368,31]
[406335327,1771761043282,-324.652155,0.000368,31]
[406335329,1771761043291,-324.652155,0.000368,31]
[406335331,1771761043299,-324.652155,0.000368,31]
[406335332,1771761043308,-324.652155,0.000368,31]
[406335333,1771761043317,-932.890926,0.000368,31]
[406335334,1771761043326,-932.890926,0.000368,31]
[406335336,1771761043335,-932.890926,0.000368,31]
[406335337,1771761043343,-932.890926,0.000368,31]
[406335338,1771761043352,-14186.79877603,0.0003691,2]
[406335339,1771761043362,-151.0,0.0003691,31]
[406335340,1771761043370,-151.0,0.0003691,31]
[406335341,1771761043379,-151.0,0.0003691,31]
[406335342,1771761043387,-151.0,0.0003691,31]
[406335343,1771761043396,-151.0,0.0003691,31]
[406335344,1771761043405,-151.0,0.0003691,31]
[406335345,1771761043415,-151.0,0.0003691,14]
[406335346,1771761043423,-151.0,0.0003691,14]
[406335348,1771761043432,-151.0,0.0003691,31]
[406335350,1771761043441,-151.0,0.0003691,31]
[406335352,1771761043450,-210.791272,0.0003691,31]
[406335354,1771761043459,-151.0,0.0003691,31]
[406335356,1771761043468,-151.0,0.0003691,31]
[406335358,1771761043477,-151.0,0.0003691,31]
[406335360,1771761043487,-151.0,0.0003691,31]
[406335362,1771761043496,-256.047177,0.0003691,31]
[406335364,1771761043505,-256.047177,0.0003691,31]
[406335366,1771761043514,-256.047177,0.0003691,31]
[406335368,1771761043523,-256.047177,0.0003691,31]
[406335370,1771761043532,-151.0,0.0003691,31]
[406335372,1771761043541,-151.0,0.0003691,31]
[406335374,1771761043551,-151.0,0.0003691,31]
[406335376,1771761043560,-151.0,0.0003691,31]
[406335378,1771761043569,-151.0,0.0003691,31]
[406335380,1771761043578,-151.0,0.0003691,31]
[406335382,1771761043587,-378.726401,0.0003691,7]
[406335384,1771761043596,-378.726401,0.0003691,7]
[406335385,1771761043606,-378.726401,0.0003691,7]
[406335387,1771761043615,-378.726401,0.0003691,7]
[406335389,1771761043623,-1000.0,0.00036938,14]
[406335391,1771761043632,-161.86,0.00036986,30]
[406335393,1771761043641,-365.0,0.00037,2]
[406335395,1771761043650,-166.3728012,0.00037,2]
[406335397,1771761043658,-7402.60766622,0.00037,3]
[406335399,1771761043667,-150.0,0.00037,2]
[406335401,1771761043676,-200.0,0.00037148,52]
[406335403,1771761043685,-1000.0,0.00037212,14]
[406335405,1771761043695,-164.4,0.000374,30]
[406335407,1771761043703,-1000.0,0.00037486,14]
[406335409,1771761043712,-4351.10384043,0.0003759,2]
[406335411,1771761043721,-1000.0,0.0003776,14]
[406335413,1771761043730,-202.99830884,0.0003788,2]
[406335415,1771761043739,-5000.0,0.00038,3]
[406335417,1771761043748,-1000.0,0.00038034,14]
[406335419,1771761043757,-1000.0,0.00038308,14]
[406335421,1771761043766,-151.0,0.00038356,120]
[406335423,1771761043775,-151.0,0.00038356,120]
[406335425,1771761043783,-151.0,0.00038356,120]
[406335427,1771761043792,-151.0,0.00038356,120]
[406335429,1771761043801,-204.062059,0.00038356,120]
[406335431,1771761043810,-6534.02,0.000384,2]
[406335433,1771761043819,-200.0,0.00038517,62]
[406335435,1771761043828,-1999.0,0.00038582,14]
[406335437,1771761043837,-17660.15652026,0.00038646,3]
[406335439,1771761043845,-1792.07251835,0.000387,2]
[406335441,1771761043855,-469.27382562,0.00038793,8]
[406335443,1771761043865,-482.01,0.000388,30]
[406335445,1771761043873,-7427.94141284,0.00038834,2]
[406335447,1771761043882,-162.0,0.00039,31]
[406335449,1771761043891,-30892.05949706,0.00039,2]
[406335451,1771761043900,-5000.0,0.00039,3]
[406335453,1771761043908,-1325.98594102,0.00039188,4]
[406335455,1771761043917,-201.87,0.0003928,7]
[406335457,1771761043926,-201.86,0.0003928,7]
[406335459,1771761043935,-201.69,0.0003928,7]
[406335461,1771761043944,-201.7,0.0003928,7]
[406335463,1771761043957,-46052.48794098,0.000397,2]
[406335465,1771761043967,-500.0,0.00039701,120]
[406335467,1771761043975,-200.0,0.00039704,72]
[406335469,1771761043984,-430.0,0.000399,2]
[406335471,1771761043993,-505.13,0.0003999,120]
[406335472,1771761044002,-151.0,0.0004,120]
[406335474,1771761044011,-160.26260067,0.0004,2]
[406335476,1771761044020,-5000.0,0.0004,3]
[406335478,1771761044029,-759.48850188,0.0004,2]
[406335480,1771761044037,-306.0,0.0004,7]
[406335482,1771761044046,-350.0,0.0004,120]
[406335484,1771761044056,-20000.0,0.0004,3]
[406335486,1771761044065,-18268.32,0.0004,120]
[406335488,1771761044074,-10000.0,0.0004,120]
[406335490,1771761044083,-150.51,0.0004,2]
[406335492,1771761044093,-2000.0,0.000401,2]
[406335494,1771761044102,-163.0,0.000402,30]
[406335496,1771761044111,-511.76774676,0.00040384,2]
[406335498,1771761044120,-2726.091,0.00040627,58]
[406335500,1771761044129,-290.018,0.00040627,58]
[406335502,1771761044138,-200.0,0.00040733,84]
[406335504,1771761044147,-855.68345202,0.00040777,2]
[406335506,1771761044156,-306.05328416,0.00040777,2]
[406335508,1771761044166,-300.0,0.00040777,2]
[406335510,1771761044175,-884.4819891,0.00040777,2]
[406335512,1771761044187,-307.27731077,0.00040777,2]
[406335514,1771761044197,-300.0,0.00040777,2]
[406335516,1771761044206,-458.78505011,0.00040777,2]
[406335518,1771761044216,-371.39458192,0.00040777,2]
[406335520,1771761044227,-300.0,0.00040777,2]
[406335522,1771761044237,-300.0,0.00040777,2]
[406335524,1771761044247,-518.57454504,0.00040777,2]
[406335526,1771761044257,-306.23261478,0.00040777,2]
[406335529,1771761044268,-303.93956491,0.00040777,2]
[406335531,1771761044277,-300.0,0.00040777,2]
[406335533,1771761044287,-614.54850457,0.00040777,2]
[406335535,1771761044296,-1082.06179791,0.00040777,2]
[406335537,1771761044305,-855.68345202,0.00040777,2]
[406335539,1771761044315,-306.05328416,0.00040777,2]
[406335541,1771761044324,-300.0,0.00040777,2]
[406335543,1771761044333,-884.4819891,0.00040777,2]
[406335545,1771761044343,-307.27731077,0.00040777,2]
[406335546,1771761044352,-458.78505011,0.00040777,2]
[406335549,1771761044362,-300.0,0.00040777,2]
[406335550,1771761044371,-371.39458192,0.00040777,2]
[406335553,1771761044381,-300.0,0.00040777,2]
[406335555,1771761044390,-300.0,0.00040777,2]
[406335556,1771761044400,-518.57454504,0.00040777,2]
[406335558,1771761044409,-306.23261478,0.00040777,2]
[406335560,1771761044418,-300.0,0.00040777,2]
[406335562,1771761044427,-1082.06179791,0.00040777,2]
[406335564,1771761044437,-855.68345202,0.00040777,2]
[406335566,1771761044446,-306.05328416,0.00040777,2]
[406335568,1771761044456,-300.0,0.00040777,2]
[406335570,1771761044465,-884.4819891,0.00040777,2]
[406335572,1771761044474,-307.27731077,0.00040777,2]
[406335574,1771761044483,-458.78505011,0.00040777,2]
[406335575,1771761044492,-300.0,0.00040777,2]
[406335576,1771761044502,-371.39458192,0.00040777,2]
[406335577,1771761044511,-300.0,0.00040777,2]
[406335578,1771761044520,-300.0,0.00040777,2]
[406335579,1771761044653,-516.07428127,0.00040777,2]
[406335580,1771761044663,-518.57454504,0.00040777,2]
[406335581,1771761044672,-306.23261478,0.00040777,2]
[406335582,1771761044681,-300.0,0.00040777,2]
[406335583,1771761044690,-1082.06179791,0.00040777,2]
[406335584,1771761044699,-855.68345202,0.00040777,2]
[406335585,1771761044708,-306.05328416,0.00040777,2]
[406335586,1771761044717,-300.0,0.00040777,2]
[406335587,1771761044726,-884.4819891,0.00040777,2]
[406335588,1771761044735,-300.0,0.00040777,2]
[406335589,1771761044744,-307.27731077,0.00040777,2]
[406335590,1771761044753,-458.78505011,0.00040777,2]
[406335591,1771761044762,-300.0,0.00040777,2]
[406335592,1771761044772,-363.23234185,0.00040777,2]
[406335593,1771761044781,-371.39458192,0.00040777,2]
[406335594,1771761044790,-300.0,0.00040777,2]
[406335595,1771761044799,-300.0,0.00040777,2]
[406335596,1771761044808,-518.57454504,0.00040777,2]
[406335597,1771761044817,-306.23261478,0.00040777,2]
[406335598,1771761044826,-522.17806505,0.00040777,2]
[406335599,1771761044835,-300.0,0.00040777,2]
[406335600,1771761044844,-300.0,0.00040777,2]
[406335601,1771761044854,-500.0,0.00040777,2]
[406335602,1771761044863,-300.0,0.00040777,2]
[406335603,1771761044872,-1082.06179791,0.00040777,2]
[406335604,1771761044881,-300.0,0.00040777,2]
[406335605,1771761044890,-855.68345202,0.00040777,2]
[406335606,1771761044899,-306.05328416,0.00040777,2]
[406335607,1771761044908,-300.0,0.00040777,2]
[406335608,1771761044917,-884.4819891,0.00040777,2]